fUSD/lending_fUSD_20260612
["ID","MTS","AMOUNT","RATE_DAILY","PERIOD"]
[424863235,1781212252000,-37154.77266569,0.00035,7]
[424863237,1781212252000,-1013.1032934,0.00035,14]
[424863232,1781212252000,-186.27637768,0.00035,120]
[424863229,1781212252000,-743.49307148,0.00035,120]
[424863233,1781212252000,-223.68790151,0.00035,120]
[424863241,1781212252000,-525074.62535566,0.00035,7]
[424863230,1781212252000,-212.97669287,0.00035,120]
[424863228,1781212252000,-200.02195816,0.00035,120]
[424863224,1781212252000,-187.69831663,0.00035,120]
[424863234,1781212252000,-190.70801845,0.00035,120]
[424863223,1781212252000,-374.4491521,0.00035,10]
[424863221,1781212252000,-18577.38633284,0.00035,7]
[424863226,1781212252000,-657.31627002,0.00035,120]
[424863225,1781212252000,-794.63877252,0.00035,120]
[424863231,1781212252000,-1074.78927319,0.00035,120]
[424863227,1781212252000,-862.3682448,0.00035,120]
[424863253,1781212253000,-33311.28536358,0.00035,30]
[424863261,1781212253000,-3000.06487364,0.00035,30]
[424863267,1781212253000,-276.65911688,0.00035,120]
[424863264,1781212253000,-150.0,0.00035,60]
[424863260,1781212253000,-526.0,0.00035,5]
[424863255,1781212253000,-2571.5060031,0.00035,2]
[424863256,1781212253000,-5489.39497924,0.00035,120]
[424863254,1781212253000,-340000.0,0.00035,4]
[424863257,1781212253000,-2800.09765686,0.00035,10]
[424863263,1781212253000,-44466.17,0.00035,15]
[424863244,1781212253000,-10211.72305224,0.00035,30]
[424863252,1781212253000,-37149.76664239,0.00035,5]
[424863250,1781212253000,-699.12759513,0.00027721,2]
[424863247,1781212253000,-338.07,0.0002755,2]
[424863248,1781212253000,-338.07,0.0002758,7]
[424863246,1781212253000,-195.0,0.00022,2]
[424863243,1781212253000,-12922.65673274,0.00035,7]
[424863245,1781212253000,-5976.06847385,0.00035,5]
[424863258,1781212253000,-2211.60912973,0.00035,7]
[424863242,1781212253000,-443.09253187,0.00034635,6]
[424863249,1781212253000,-338.07,0.00027611,30]
[424863262,1781212253000,-157.635871,0.00035,7]
[424863251,1781212253000,-300.0,0.00034468,2]
[424863266,1781212253000,-157.635871,0.00035,7]
[424863259,1781212253000,-157.635871,0.00035,7]
[424863287,1781212253000,-151.0,0.00035,7]
[424863285,1781212253000,-151.0,0.00035,7]
[424863286,1781212253000,-151.0,0.00035,7]
[424863284,1781212253000,-151.0,0.00035,7]
[424863282,1781212253000,-300.0,0.00035,10]
[424863283,1781212253000,-197.110996,0.00035,7]
[424863281,1781212253000,-151.0,0.00035,7]
[424863280,1781212253000,-151.0,0.00035,7]
[424863279,1781212253000,-157.611457,0.00035,7]
[424863277,1781212253000,-157.611457,0.00035,7]
[424863288,1781212253000,-151.0,0.00035,7]
[424863273,1781212253000,-58576.22920144,0.00035,2]
[424863278,1781212253000,-157.611457,0.00035,7]
[424863276,1781212253000,-157.611457,0.00035,7]
[424863275,1781212253000,-248.67532,0.00035,7]
[424863269,1781212253000,-1700.91653113,0.00035,7]
[424863270,1781212253000,-5283.66008393,0.00035,7]
[424863272,1781212253000,-501.91432577,0.00035,120]
[424863271,1781212253000,-934.82619669,0.00035,120]
[424863268,1781212253000,-6561.3071112,0.00035,2]
[424863265,1781212253000,-157.635871,0.00035,7]
[424863274,1781212253000,-151.0,0.00035,7]
[424863321,1781212254000,-264.999239,0.00035,7]
[424863319,1781212254000,-1134.0,0.00035,7]
[424863318,1781212254000,-264.447944,0.00035,7]
[424863315,1781212254000,-612.279922,0.00035,7]
[424863317,1781212254000,-151.0,0.00035,7]
[424863310,1781212254000,-612.279922,0.00035,7]
[424863314,1781212254000,-151.0,0.00035,7]
[424863316,1781212254000,-151.0,0.00035,7]
[424863320,1781212254000,-264.447944,0.00035,7]
[424863322,1781212254000,-264.447944,0.00035,7]
[424863324,1781212254000,-200.0,0.00035006,10]
[424863326,1781212254000,-2977.5286,0.00035019,2]
[424863325,1781212254000,-2886.1885,0.00035019,2]
[424863338,1781212254000,-250.0,0.00035129,37]
[424863328,1781212254000,-420.2,0.0003503,62]
[424863333,1781212254000,-25185.8515619,0.000351,120]
[424863331,1781212254000,-1570.0,0.00035068,30]
[424863330,1781212254000,-1358.0,0.00035062,2]
[424863313,1781212254000,-151.0,0.00035,7]
[424863323,1781212254000,-264.999239,0.00035,7]
[424863311,1781212254000,-151.0,0.00035,7]
[424863302,1781212254000,-151.0,0.00035,7]
[424863308,1781212254000,-612.279922,0.00035,7]
[424863289,1781212254000,-200.0,0.00035,120]
[424863290,1781212254000,-350.0,0.00035,60]
[424863294,1781212254000,-1451.861569,0.00035,7]
[424863292,1781212254000,-1451.861569,0.00035,7]
[424863299,1781212254000,-152.603067,0.00035,7]
[424863296,1781212254000,-1451.861569,0.00035,7]
[424863291,1781212254000,-1451.861569,0.00035,7]
[424863293,1781212254000,-1451.861569,0.00035,7]
[424863295,1781212254000,-1451.861569,0.00035,7]
[424863312,1781212254000,-612.279922,0.00035,7]
[424863297,1781212254000,-1451.861569,0.00035,7]
[424863300,1781212254000,-151.0,0.00035,7]
[424863301,1781212254000,-151.0,0.00035,7]
[424863303,1781212254000,-151.0,0.00035,7]
[424863304,1781212254000,-1314.640837,0.00035,7]
[424863306,1781212254000,-1314.640837,0.00035,7]
[424863327,1781212254000,-158.2145375,0.00035023,2]
[424863305,1781212254000,-1314.640837,0.00035,7]
[424863309,1781212254000,-151.0,0.00035,7]
[424863307,1781212254000,-1314.640837,0.00035,7]
[424863298,1781212254000,-1451.861569,0.00035,7]
[424863336,1781212254000,-157.57216,0.0003512,62]
[424863367,1781212254000,-1270.0,0.0003515,30]
[424863332,1781212254000,-500.0,0.00035082,29]
[424863355,1781212254000,-4680.56300297,0.00035129,37]
[424863362,1781212254000,-338.0,0.0003515,30]
[424863361,1781212254000,-248.0,0.0003515,30]
[424863363,1781212254000,-155.0,0.0003515,30]
[424863365,1781212254000,-337.0,0.0003515,30]
[424863371,1781212254000,-260.0,0.00035151,30]
[424863364,1781212254000,-267.0,0.0003515,30]
[424863368,1781212254000,-241.0,0.0003515,30]
[424863366,1781212254000,-788.0,0.0003515,30]
[424863356,1781212254000,-500.0,0.00035129,37]
[424863369,1781212254000,-199.0,0.0003515,30]
[424863373,1781212254000,-865.0,0.00035151,30]
[424863372,1781212254000,-279.0,0.00035151,30]
[424863375,1781212254000,-813.528146,0.00035168,60]
[424863376,1781212254000,-450.28,0.00035174,2]
[424863374,1781212254000,-195.0,0.00035151,30]
[424863377,1781212254000,-3444.0,0.00035188,5]
[424863380,1781212254000,-1000.0,0.00035202,2]
[424863379,1781212254000,-200.0,0.000352,10]
[424863378,1781212254000,-10007.35187955,0.000352,30]
[424863370,1781212254000,-448.0,0.0003515,30]
[424863357,1781212254000,-1000.0,0.00035129,37]
[424863334,1781212254000,-2100.4541,0.00035102,2]
[424863354,1781212254000,-201.93286099,0.00035129,37]
[424863358,1781212254000,-151.0,0.00035129,37]
[424863337,1781212254000,-151.0,0.00035129,37]
[424863329,1781212254000,-446.2,0.00035045,7]
[424863335,1781212254000,-200.0,0.00035103,10]
[424863339,1781212254000,-161.46095509,0.00035129,37]
[424863349,1781212254000,-201.93286098,0.00035129,37]
[424863344,1781212254000,-695.39793187,0.00035129,37]
[424863342,1781212254000,-9211.34798984,0.00035129,37]
[424863345,1781212254000,-668.65185757,0.00035129,37]
[424863348,1781212254000,-201.93286098,0.00035129,37]
[424863341,1781212254000,-201.93286099,0.00035129,37]
[424863347,1781212254000,-151.0,0.00035129,37]
[424863340,1781212254000,-151.0,0.00035129,37]
[424863346,1781212254000,-151.0,0.00035129,37]
[424863351,1781212254000,-160.27064532,0.00035129,37]
[424863359,1781212254000,-2886.1885,0.00035143,2]
[424863353,1781212254000,-500.0,0.00035129,37]
[424863360,1781212254000,-2977.5286,0.00035143,2]
[424863352,1781212254000,-152.0,0.00035129,37]
[424863343,1781212254000,-151.0,0.00035129,37]
[424863350,1781212254000,-155.57259517,0.00035129,37]
[424863430,1781212255000,-8565.75555911,0.00035352,38]
[424863429,1781212255000,-187.78006524,0.00035352,38]
[424863419,1781212255000,-194.72792766,0.00035316,54]
[424863412,1781212255000,-194.72792766,0.00035316,54]
[424863414,1781212255000,-194.72792766,0.00035316,54]
[424863408,1781212255000,-670.58624095,0.00035316,54]
[424863417,1781212255000,-500.0,0.00035316,54]
[424863413,1781212255000,-160.27064532,0.00035316,54]
[424863428,1781212255000,-151.0,0.00035352,38]
[424863415,1781212255000,-155.57259517,0.00035316,54]
[424863421,1781212255000,-1000.0,0.00035316,54]
[424863435,1781212255000,-151.0,0.00035352,38]
[424863420,1781212255000,-500.0,0.00035316,54]
[424863425,1781212255000,-151.0,0.00035352,38]
[424863423,1781212255000,-157.57217,0.0003532,65]
[424863418,1781212255000,-4513.56123719,0.00035316,54]
[424863427,1781212255000,-160.0,0.00035352,38]
[424863426,1781212255000,-250.0,0.00035352,38]
[424863431,1781212255000,-154.12265554,0.00035352,38]
[424863433,1781212255000,-646.65982734,0.00035352,38]
[424863434,1781212255000,-621.78829552,0.00035352,38]
[424863407,1781212255000,-151.0,0.00035316,54]
[424863432,1781212255000,-151.0,0.00035352,38]
[424863438,1781212255000,-187.78006524,0.00035352,38]
[424863424,1781212255000,-1570.0,0.00035342,30]
[424863410,1781212255000,-151.0,0.00035316,54]
[424863398,1781212255000,-2500.0,0.000353,14]
[424863409,1781212255000,-644.79446245,0.00035316,54]
[424863382,1781212255000,-157.57217,0.0003522,64]
[424863381,1781212255000,-1050.42853373,0.00035202,2]
[424863383,1781212255000,-3844.9800615,0.00035238,2]
[424863386,1781212255000,-2886.1885,0.00035266,2]
[424863387,1781212255000,-2977.5286,0.00035266,2]
[424863385,1781212255000,-190.74,0.0003526,2]
[424863384,1781212255000,-200.0,0.00035249,2]
[424863388,1781212255000,-255.54,0.00035276,120]
[424863390,1781212255000,-737.079847,0.00035279,120]
[424863392,1781212255000,-634.43,0.00035282,41]
[424863389,1781212255000,-231.29,0.00035276,120]
[424863393,1781212255000,-150.0,0.00035285,2]
[424863411,1781212255000,-151.0,0.00035316,54]
[424863391,1781212255000,-9463.658,0.00035282,41]
[424863394,1781212255000,-150.0,0.00035285,2]
[424863396,1781212255000,-2100.4541,0.00035293,2]
[424863399,1781212255000,-1000.0,0.000353,2]
[424863441,1781212255000,-155.57259517,0.00035352,38]
[424863400,1781212255000,-151.0,0.00035316,54]
[424863397,1781212255000,-158.2145375,0.00035297,2]
[424863401,1781212255000,-250.0,0.00035316,54]
[424863402,1781212255000,-160.0,0.00035316,54]
[424863403,1781212255000,-151.0,0.00035316,54]
[424863404,1781212255000,-194.72792766,0.00035316,54]
[424863405,1781212255000,-8882.6885148,0.00035316,54]
[424863406,1781212255000,-154.12265554,0.00035316,54]
[424863395,1781212255000,-150.97091164,0.00035285,2]
[424863439,1781212255000,-187.78006524,0.00035352,38]
[424863416,1781212255000,-152.0,0.00035316,54]
[424863437,1781212255000,-500.0,0.00035352,38]
[424863470,1781212255000,-288.41545022,0.00035399,30]
[424863471,1781212255000,-152.0,0.00035399,30]
[424863472,1781212255000,-151.0,0.00035399,30]
[424863475,1781212255000,-160.27064532,0.00035399,30]
[424863474,1781212255000,-181.08010149,0.00035399,30]
[424863473,1781212255000,-500.0,0.00035399,30]
[424863477,1781212255000,-4197.22089552,0.00035399,30]
[424863480,1781212255000,-181.08010149,0.00035399,30]
[424863479,1781212255000,-1000.0,0.00035399,30]
[424863478,1781212255000,-500.0,0.00035399,30]
[424863483,1781212255000,-150.0,0.000354,2]
[424863484,1781212255000,-10081.31594276,0.000354,120]
[424863468,1781212255000,-181.08010149,0.00035399,30]
[424863481,1781212255000,-151.0,0.00035399,30]
[424863485,1781212255000,-286.0,0.000354,120]
[424863487,1781212255000,-157.57217,0.0003542,66]
[424863486,1781212255000,-179.535904,0.000354,2]
[424863489,1781212255000,-100000.0,0.00035455,120]
[424863490,1781212255000,-100000.0,0.00035455,90]
[424863488,1781212255000,-2017.46127646,0.00035423,15]
[424863494,1781212255000,-157.611457,0.00035455,7]
[424863493,1781212255000,-157.611457,0.00035455,7]
[424863491,1781212255000,-100000.0,0.00035455,60]
[424863492,1781212255000,-157.611457,0.00035455,7]
[424863495,1781212255000,-157.611457,0.00035455,7]
[424863436,1781212255000,-151.0,0.00035352,38]
[424863482,1781212255000,-180.723976,0.000354,21]
[424863469,1781212255000,-151.0,0.00035399,30]
[424863422,1781212255000,-151.0,0.00035316,54]
[424863466,1781212255000,-623.58710447,0.00035399,30]
[424863476,1781212255000,-155.57259517,0.00035399,30]
[424863440,1781212255000,-160.27064532,0.00035352,38]
[424863443,1781212255000,-4352.51806865,0.00035352,38]
[424863442,1781212255000,-152.0,0.00035352,38]
[424863445,1781212255000,-500.0,0.00035352,38]
[424863444,1781212255000,-187.78006524,0.00035352,38]
[424863446,1781212255000,-1000.0,0.00035352,38]
[424863448,1781212255000,-784.69229814,0.00035361,2]
[424863451,1781212255000,-443.09253187,0.0003537,7]
[424863450,1781212255000,-11087.14880846,0.0003537,2]
[424863449,1781212255000,-662.02072178,0.0003537,2]
[424863452,1781212255000,-158.55225596,0.00035384,2]
[424863454,1781212255000,-2977.5286,0.00035389,2]
[424863447,1781212255000,-151.0,0.00035352,38]
[424863460,1781212255000,-151.0,0.00035399,30]
[424863467,1781212255000,-209.37652795,0.00035399,30]
[424863453,1781212255000,-2886.1885,0.00035389,2]
[424863456,1781212255000,-2957.0,0.00035397,55]
[424863459,1781212255000,-250.0,0.00035399,30]
[424863458,1781212255000,-160.0,0.00035399,30]
[424863457,1781212255000,-151.0,0.00035399,30]
[424863462,1781212255000,-181.08010149,0.00035399,30]
[424863465,1781212255000,-151.0,0.00035399,30]
[424863455,1781212255000,-6825.42106769,0.00035395,30]
[424863464,1781212255000,-599.60298507,0.00035399,30]
[424863463,1781212255000,-154.12265554,0.00035399,30]
[424863461,1781212255000,-8260.13072238,0.00035399,30]
[424863514,1781212256000,-151.0,0.00035455,7]
[424863515,1781212256000,-184.279738,0.00035455,7]
[424863517,1781212256000,-264.447944,0.00035455,7]
[424863521,1781212256000,-420.2,0.0003546,88]
[424863512,1781212256000,-151.0,0.00035455,7]
[424863524,1781212256000,-151.0,0.00035461,7]
[424863516,1781212256000,-264.447944,0.00035455,7]
[424863518,1781212256000,-264.999239,0.00035455,7]
[424863522,1781212256000,-9096.69712251,0.00035461,31]
[424863523,1781212256000,-269240.08949065,0.00035461,7]
[424863525,1781212256000,-157.611457,0.00035461,7]
[424863520,1781212256000,-151.0,0.0003546,7]
[424863530,1781212256000,-284.204534,0.00035461,7]
[424863513,1781212256000,-612.279922,0.00035455,7]
[424863511,1781212256000,-151.0,0.00035455,7]
[424863500,1781212256000,-151.0,0.00035455,7]
[424863506,1781212256000,-612.279922,0.00035455,7]
[424863497,1781212256000,-151.0,0.00035455,7]
[424863496,1781212256000,-151.0,0.00035455,7]
[424863498,1781212256000,-151.0,0.00035455,7]
[424863499,1781212256000,-151.0,0.00035455,7]
[424863532,1781212256000,-151.0,0.00035461,7]
[424863501,1781212256000,-151.0,0.00035455,7]
[424863519,1781212256000,-264.447944,0.00035455,7]
[424863502,1781212256000,-1314.640837,0.00035455,7]
[424863507,1781212256000,-151.0,0.00035455,7]
[424863510,1781212256000,-612.279922,0.00035455,7]
[424863505,1781212256000,-1314.640837,0.00035455,7]
[424863503,1781212256000,-1314.640837,0.00035455,7]
[424863504,1781212256000,-1314.640837,0.00035455,7]
[424863509,1781212256000,-151.0,0.00035455,7]
[424863508,1781212256000,-612.279922,0.00035455,7]
[424863531,1781212256000,-151.0,0.00035461,7]
[424863543,1781212256000,-1314.640837,0.00035461,7]
[424863528,1781212256000,-157.611457,0.00035461,7]
[424863562,1781212256000,-149.20497924,0.00035461,30]
[424863560,1781212256000,-111.47291094,0.00034468,2]
[424863557,1781212256000,-2559324.62806793,0.00035461,30]
[424863561,1781212256000,-264.447944,0.00035461,7]
[424863559,1781212256000,-333.6959706,0.00034468,2]
[424863558,1781212256000,-338.07,0.00027641,2]
[424863556,1781212256000,-264.999239,0.00035461,7]
[424863549,1781212256000,-612.279922,0.00035461,7]
[424863554,1781212256000,-264.447944,0.00035461,7]
[424863551,1781212256000,-151.0,0.00035461,7]
[424863555,1781212256000,-264.447944,0.00035461,7]
[424863548,1781212256000,-151.0,0.00035461,7]
[424863529,1781212256000,-151.0,0.00035461,7]
[424863547,1781212256000,-612.279922,0.00035461,7]
[424863550,1781212256000,-176.165138,0.00035461,7]
[424863552,1781212256000,-612.279922,0.00035461,7]
[424863542,1781212256000,-1314.640837,0.00035461,7]
[424863527,1781212256000,-157.611457,0.00035461,7]
[424863526,1781212256000,-157.611457,0.00035461,7]
[424863534,1781212256000,-1451.861569,0.00035461,7]
[424863544,1781212256000,-1314.640837,0.00035461,7]
[424863546,1781212256000,-151.0,0.00035461,7]
[424863535,1781212256000,-1451.861569,0.00035461,7]
[424863533,1781212256000,-1451.861569,0.00035461,7]
[424863537,1781212256000,-151.0,0.00035461,7]
[424863545,1781212256000,-612.279922,0.00035461,7]
[424863539,1781212256000,-151.0,0.00035461,7]
[424863536,1781212256000,-1451.861569,0.00035461,7]
[424863540,1781212256000,-151.0,0.00035461,7]
[424863541,1781212256000,-1314.640837,0.00035461,7]
[424863538,1781212256000,-151.0,0.00035461,7]
[424863553,1781212256000,-151.0,0.00035461,7]
[424863567,1781212257000,-2009.99590978,0.00021619,2]
[424863563,1781212257000,-6057.04165667,0.000199,2]
[424863564,1781212257000,-1994.9608015,0.000199,2]
[424863565,1781212257000,-2613.22761211,0.00021619,2]
[424863568,1781212257000,-124.19503965,0.00023,2]
[424863569,1781212257000,-70.80496035,0.00023,2]
[424863570,1781212257000,-195.0,0.00024,2]
[424863572,1781212257000,-33.77783814,0.00027397,10]
[424863571,1781212257000,-209.0,0.00025,2]
[424863566,1781212257000,-3428.77893626,0.00021619,2]
[424863576,1781212327000,500.0,0.00010485,2]
[424863577,1781212404000,-174.33657181,0.00010658,2]
[424863578,1781212458000,-1892.731,0.00010641,2]
[424863579,1781212459000,500.0,0.00010485,2]
[424863580,1781212512000,-158.607,0.00010641,2]
[424863583,1781212565000,-250.0,0.00010645,2]
[424863586,1781212618000,-150.0,0.0001065,2]
[424863587,1781212671000,-183.14904966,0.00010658,2]
[424863588,1781212726000,-275.64071845,0.00010664,2]
[424863589,1781212779000,-472.97115397,0.00010569,2]
[424863590,1781212831000,-300.0,0.00010666,2]
[424863591,1781212885000,-250.0,0.00010668,2]
[424863592,1781212898000,150.0,0.00010348,2]
[424863601,1781213161000,219.43,0.00010308,2]
[424863602,1781213166000,352.41,0.00010308,2]
[424863603,1781213178000,912.14,0.00010268,2]
[424863607,1781213243000,-4446.61054427,0.00010541,2]
[424863608,1781213296000,-300.0,0.00010591,2]
[424863610,1781213350000,-200.0,0.000106,3]
[424863618,1781213403000,-160.0,0.00010643,2]
[424863611,1781213403000,-395.0391431,0.0001062,2]
[424863612,1781213403000,-300.0,0.0001064,2]
[424863613,1781213403000,-2698.29321823,0.00010641,2]
[424863614,1781213403000,-2998.29321823,0.00010641,2]
[424863615,1781213403000,-1495.79356354,0.00010641,2]
[424863619,1781213403000,-400.0,0.000107,3]
[424863616,1781213403000,-475.822,0.00010641,2]
[424863621,1781213403000,-100.72189384,0.00010797,7]
[424863620,1781213403000,-150.0,0.00010705,2]
[424863617,1781213403000,-215.95576085,0.00010641,2]
[424863622,1781213403000,-94.94375969,0.00010797,7]
[424863623,1781213403000,-560.49449868,0.000108,2]
[424863624,1781213403000,-700.0,0.000108,3]
[424863625,1781213403000,-182.3053775,0.000108,2]
[424863626,1781213403000,-98.21909466,0.00010811,2]
[424863627,1781213403000,-51.78090534,0.00010811,2]
[424863628,1781213404000,-1000.0,0.00010856,2]
[424863629,1781213404000,-150.0,0.00010856,2]
[424863632,1781213404000,-1146.39875517,0.00010857,2]
[424863631,1781213404000,-500.0,0.00010857,2]
[424863630,1781213404000,-150.11355772,0.00010857,2]
[424863646,1781213432000,-937.16842713,0.00010857,2]
[424863652,1781213432000,-937.16842713,0.00010857,2]
[424863653,1781213432000,-937.16842713,0.00010857,2]
[424863650,1781213432000,-937.16842713,0.00010857,2]
[424863649,1781213432000,-937.16842713,0.00010857,2]
[424863651,1781213432000,-937.16842713,0.00010857,2]
[424863648,1781213432000,-937.16842713,0.00010857,2]
[424863641,1781213432000,-255.29250575,0.00010857,2]
[424863647,1781213432000,-937.16842713,0.00010857,2]
[424863645,1781213432000,-937.16842713,0.00010857,2]
[424863636,1781213432000,-937.16842713,0.00010857,2]
[424863643,1781213432000,-937.16842713,0.00010857,2]
[424863642,1781213432000,-937.16842713,0.00010857,2]
[424863639,1781213432000,-937.16842713,0.00010857,2]
[424863640,1781213432000,-681.87592138,0.00010857,2]
[424863638,1781213432000,-937.16842713,0.00010857,2]
[424863635,1781213432000,-853.60124483,0.00010857,2]
[424863637,1781213432000,-937.16842713,0.00010857,2]
[424863634,1781213432000,-429.80294,0.00010856,2]
[424863633,1781213432000,-570.19706,0.00010856,2]
[424863655,1781213432000,-937.16842713,0.00010857,2]
[424863644,1781213432000,-937.16842713,0.00010857,2]
[424863666,1781213432000,-937.16842713,0.00010857,2]
[424863662,1781213432000,-937.16842713,0.00010857,2]
[424863660,1781213432000,-937.16842713,0.00010857,2]
[424863686,1781213432000,-937.16842713,0.00010857,2]
[424863657,1781213432000,-937.16842713,0.00010857,2]
[424863685,1781213432000,-937.16842713,0.00010857,2]
[424863681,1781213432000,-937.16842713,0.00010857,2]
[424863684,1781213432000,-937.16842713,0.00010857,2]
[424863682,1781213432000,-937.16842713,0.00010857,2]
[424863680,1781213432000,-937.16842713,0.00010857,2]
[424863679,1781213432000,-937.16842713,0.00010857,2]
[424863675,1781213432000,-937.16842713,0.00010857,2]
[424863674,1781213432000,-937.16842713,0.00010857,2]
[424863677,1781213432000,-937.16842713,0.00010857,2]
[424863683,1781213432000,-937.16842713,0.00010857,2]
[424863673,1781213432000,-937.16842713,0.00010857,2]
[424863676,1781213432000,-937.16842713,0.00010857,2]
[424863667,1781213432000,-937.16842713,0.00010857,2]
[424863670,1781213432000,-937.16842713,0.00010857,2]
[424863678,1781213432000,-937.16842713,0.00010857,2]
[424863671,1781213432000,-937.16842713,0.00010857,2]
[424863669,1781213432000,-937.16842713,0.00010857,2]
[424863672,1781213432000,-937.16842713,0.00010857,2]
[424863668,1781213432000,-937.16842713,0.00010857,2]
[424863664,1781213432000,-937.16842713,0.00010857,2]
[424863726,1781213433000,-917.87378303,0.00010857,2]
[424863713,1781213433000,-917.87378303,0.00010857,2]
[424863707,1781213433000,-917.87378303,0.00010857,2]
[424863710,1781213433000,-917.87378303,0.00010857,2]
[424863709,1781213433000,-917.87378303,0.00010857,2]
[424863714,1781213433000,-917.87378303,0.00010857,2]
[424863712,1781213433000,-917.87378303,0.00010857,2]
[424863721,1781213433000,-917.87378303,0.00010857,2]
[424863717,1781213433000,-917.87378303,0.00010857,2]
[424863716,1781213433000,-917.87378303,0.00010857,2]
[424863719,1781213433000,-917.87378303,0.00010857,2]
[424863720,1781213433000,-917.87378303,0.00010857,2]
[424863718,1781213433000,-917.87378303,0.00010857,2]
[424863722,1781213433000,-917.87378303,0.00010857,2]
[424863724,1781213433000,-917.87378303,0.00010857,2]
[424863708,1781213433000,-917.87378303,0.00010857,2]
[424863715,1781213433000,-917.87378303,0.00010857,2]
[424863711,1781213433000,-917.87378303,0.00010857,2]
[424863699,1781213433000,-937.16842713,0.00010857,2]
[424863704,1781213433000,-917.87378303,0.00010857,2]
[424863723,1781213433000,-917.87378303,0.00010857,2]
[424863687,1781213433000,-937.16842713,0.00010857,2]
[424863693,1781213433000,-937.16842713,0.00010857,2]
[424863694,1781213433000,-937.16842713,0.00010857,2]
[424863691,1781213433000,-937.16842713,0.00010857,2]
[424863688,1781213433000,-937.16842713,0.00010857,2]
[424863689,1781213433000,-937.16842713,0.00010857,2]
[424863690,1781213433000,-937.16842713,0.00010857,2]
[424863706,1781213433000,-917.87378303,0.00010857,2]
[424863692,1781213433000,-937.16842713,0.00010857,2]
[424863696,1781213433000,-937.16842713,0.00010857,2]
[424863700,1781213433000,-917.87378303,0.00010857,2]
[424863697,1781213433000,-937.16842713,0.00010857,2]
[424863698,1781213433000,-937.16842713,0.00010857,2]
[424863703,1781213433000,-917.87378303,0.00010857,2]
[424863702,1781213433000,-917.87378303,0.00010857,2]
[424863701,1781213433000,-917.87378303,0.00010857,2]
[424863705,1781213433000,-917.87378303,0.00010857,2]
[424863695,1781213433000,-937.16842713,0.00010857,2]
[424863725,1781213433000,-917.87378303,0.00010857,2]
[424863738,1781213433000,-150.0,0.00010917,2]
[424863728,1781213433000,-917.87378303,0.00010857,2]
[424863759,1781213433000,-300.0,0.0001165,2]
[424863752,1781213433000,-166.66,0.00011177,2]
[424863756,1781213433000,-300.0,0.00011595,2]
[424863751,1781213433000,-250.0,0.00011129,2]
[424863754,1781213433000,-912.14,0.00011552,2]
[424863757,1781213433000,-250.0,0.00011595,2]
[424863755,1781213433000,-300.0,0.00011595,2]
[424863753,1781213433000,-166.66,0.00011395,2]
[424863760,1781213433000,-250.0,0.0001166,2]
[424863766,1781213433000,-912.14,0.00012835,2]
[424863768,1781213433000,-767.48,0.00013332,2]
[424863761,1781213433000,-250.0,0.00011704,2]
[424863764,1781213433000,-166.66,0.0001205,2]
[424863763,1781213433000,-767.48,0.0001185,2]
[424863762,1781213433000,-166.66,0.00011832,2]
[424863767,1781213433000,-2252.30475284,0.00012904,2]
[424863727,1781213433000,-917.87378303,0.00010857,2]
[424863758,1781213433000,-166.66,0.00011614,2]
[424863749,1781213433000,-166.66,0.00010959,2]
[424863765,1781213433000,-444.32,0.00012747,2]
[424863745,1781213433000,-500.0,0.00010958,2]
[424863736,1781213433000,-917.87378304,0.00010857,2]
[424863750,1781213433000,-150.0,0.00011023,2]